[Event "Titled Tuesday Blitz May 16 Late 2023"]
[White "Dmitriev, Sergey"]
[Black "Altman, Joshua"]
[WhiteFideId "14101785"]
[BlackFideId "426210"]
[WhiteElo "2132"]
[BlackElo "2028"]
[Result "0-1"]
[Round "03"]
[TimeControl "180+2"]
[Date "2023.05.16"]
[WhiteClock "0:00:00"]
[BlackClock "0:00:04"]

1. e4 {[%clk 0:03:00]}  e6 {[%clk 0:02:59]} 2. Nf3 {[%clk 0:03:00]}  d5 {[%clk 0:03:00]} 3. exd5 {[%clk 0:02:59]}  exd5 {[%clk 0:03:00]} 4. d4 {[%clk 0:02:58]}  Nf6 {[%clk 0:03:01]} 5. Bf4 {[%clk 0:02:55]}  Bd6 {[%clk 0:03:00]} 6. Bg3 {[%clk 0:02:54]}  O-O {[%clk 0:03:00]} 7. Be2 {[%clk 0:02:52]}  Bg4 {[%clk 0:02:57]} 8. O-O {[%clk 0:02:51]}  Re8 {[%clk 0:02:56]} 9. Nbd2 {[%clk 0:02:50]}  Bxg3 {[%clk 0:02:50]} 10. hxg3 {[%clk 0:02:49]}  Nbd7 {[%clk 0:02:50]} 11. c3 {[%clk 0:02:47]}  h6 {[%clk 0:02:50]} 12. Re1 {[%clk 0:02:46]}  c6 {[%clk 0:02:47]} 13. Qc2 {[%clk 0:02:45]}  Qc7 {[%clk 0:02:35]} 14. Bd3 {[%clk 0:02:43]}  Rxe1+ {[%clk 0:02:29]} 15. Rxe1 {[%clk 0:02:42]}  Re8 {[%clk 0:02:29]} 16. Rxe8+ {[%clk 0:02:36]}  Nxe8 {[%clk 0:02:30]} 17. Bf5 {[%clk 0:02:28]}  Bxf5 {[%clk 0:02:16]} 18. Qxf5 {[%clk 0:02:26]}  Nf8 {[%clk 0:02:16]} 19. Ne5 {[%clk 0:02:22]}  Nd6 {[%clk 0:02:15]} 20. Qh5 {[%clk 0:02:10]}  Qe7 {[%clk 0:02:10]} 21. Ndf3 {[%clk 0:02:03]}  Ne4 {[%clk 0:02:08]} 22. Qg4 {[%clk 0:01:56]}  Ne6 {[%clk 0:02:03]} 23. Qf5 {[%clk 0:01:47]}  g6 {[%clk 0:01:38]} 24. Qg4 {[%clk 0:01:27]}  h5 {[%clk 0:01:32]} 25. Qh4 {[%clk 0:01:18]}  Qxh4 {[%clk 0:01:27]} 26. Nxh4 {[%clk 0:01:18]}  Kf8 {[%clk 0:01:20]} 27. Nhf3 {[%clk 0:01:17]}  Ke7 {[%clk 0:01:18]} 28. Kf1 {[%clk 0:01:17]}  g5 {[%clk 0:01:07]} 29. Ke2 {[%clk 0:01:16]}  f6 {[%clk 0:01:05]} 30. Nd3 {[%clk 0:01:13]}  Kd6 {[%clk 0:01:01]} 31. Nd2 {[%clk 0:01:12]}  f5 {[%clk 0:00:58]} 32. Ne5 {[%clk 0:01:09]}  c5 {[%clk 0:00:46]} 33. Nxe4+ {[%clk 0:01:01]}  dxe4 {[%clk 0:00:42]} 34. Ke3 {[%clk 0:00:56]}  cxd4+ {[%clk 0:00:41]} 35. cxd4 {[%clk 0:00:56]}  Kd5 {[%clk 0:00:41]} 36. Nf7 {[%clk 0:00:50]}  f4+ {[%clk 0:00:42]} 37. gxf4 {[%clk 0:00:48]}  gxf4+ {[%clk 0:00:43]} 38. Ke2 {[%clk 0:00:44]}  Kxd4 {[%clk 0:00:41]} 39. Nd6 {[%clk 0:00:43]}  Nc5 {[%clk 0:00:29]} 40. Nb5+ {[%clk 0:00:39]}  Ke5 {[%clk 0:00:27]} 41. Nxa7 {[%clk 0:00:39]}  Nd3 {[%clk 0:00:26]} 42. b3 {[%clk 0:00:38]}  Nc1+ {[%clk 0:00:26]} 43. Kd2 {[%clk 0:00:27]}  Nxa2 {[%clk 0:00:27]} 44. Nb5 {[%clk 0:00:25]}  h4 {[%clk 0:00:23]} 45. Na3 {[%clk 0:00:23]}  f3 {[%clk 0:00:20]} 46. gxf3 {[%clk 0:00:22]}  exf3 {[%clk 0:00:20]} 47. Ke3 {[%clk 0:00:21]}  Nc1 {[%clk 0:00:18]} 48. Kxf3 {[%clk 0:00:21]}  Nxb3 {[%clk 0:00:18]} 49. Kg4 {[%clk 0:00:21]}  Ke4 {[%clk 0:00:14]} 50. Kxh4 {[%clk 0:00:21]}  Kf3 {[%clk 0:00:14]} 51. Nc4 {[%clk 0:00:19]}  Kxf2 {[%clk 0:00:14]} 52. Kg4 {[%clk 0:00:20]}  Ke2 {[%clk 0:00:14]} 53. Kf4 {[%clk 0:00:21]}  Kd3 {[%clk 0:00:14]} 54. Nd6 {[%clk 0:00:20]}  b6 {[%clk 0:00:13]} 55. Ke5 {[%clk 0:00:20]}  Nd4 {[%clk 0:00:11]} 56. Kd5 {[%clk 0:00:20]}  Kc3 {[%clk 0:00:10]} 57. Nc8 {[%clk 0:00:19]}  b5 {[%clk 0:00:10]} 58. Nd6 {[%clk 0:00:17]}  b4 {[%clk 0:00:10]} 59. Ne4+ {[%clk 0:00:17]}  Kd3 {[%clk 0:00:09]} 60. Nc5+ {[%clk 0:00:16]}  Kc3 {[%clk 0:00:08]} 61. Ke4 {[%clk 0:00:14]}  Kc4 {[%clk 0:00:07]} 62. Na4 {[%clk 0:00:13]}  b3 {[%clk 0:00:07]} 63. Nb2+ {[%clk 0:00:13]}  Kc3 {[%clk 0:00:08]} 64. Na4+ {[%clk 0:00:13]}  Kb4 {[%clk 0:00:07]} 65. Nb2 {[%clk 0:00:13]}  Ne2 {[%clk 0:00:04]} 66. Nd3+ {[%clk 0:00:12]}  Ka3 {[%clk 0:00:04]} 67. Ke3 {[%clk 0:00:11]}  Nc1 {[%clk 0:00:04]} 68. Nxc1 {[%clk 0:00:10]}  b2 {[%clk 0:00:05]} 69. Nd3 {[%clk 0:00:10]}  b1=Q {[%clk 0:00:05]} 70. Ke4 {[%clk 0:00:10]}  Kb3 {[%clk 0:00:05]} 71. Kd4 {[%clk 0:00:10]}  Qd1 {[%clk 0:00:04]} 72. Ke4 {[%clk 0:00:10]}  Kc3 {[%clk 0:00:05]} 73. Ne5 {[%clk 0:00:09]}  Qd4+ {[%clk 0:00:05]} 74. Kf5 {[%clk 0:00:09]}  Qd5 {[%clk 0:00:05]} 75. Kf6 {[%clk 0:00:09]}  Kd4 {[%clk 0:00:06]} 76. Ng6 {[%clk 0:00:07]}  Ke4 {[%clk 0:00:06]} 77. Ne7 {[%clk 0:00:06]}  Qe5+ {[%clk 0:00:05]} 78. Kf7 {[%clk 0:00:06]}  Qc7 {[%clk 0:00:04]} 79. Kf6 {[%clk 0:00:05]}  Qd6+ {[%clk 0:00:04]} 80. Kf7 {[%clk 0:00:06]}  Ke5 {[%clk 0:00:05]} 81. Ng6+ {[%clk 0:00:05]}  Kf5 {[%clk 0:00:05]} 82. Ne7+ {[%clk 0:00:05]}  Kg5 {[%clk 0:00:06]} 83. Kf8 {[%clk 0:00:03]}  Qf6+ {[%clk 0:00:04]} 84. Ke8 {[%clk 0:00:02]}  Qe6 {[%clk 0:00:04]} 85. Kd8 {[%clk 0:00:02]}  Kf6 {[%clk 0:00:04]} 86. Nd5+ {[%clk 0:00:00]}  Qxd5+ {[%clk 0:00:04]} 0-1


[Site "https://www.chess.com"]

[Event "Titled Tuesday Blitz May 16 Late 2023"]
[White "dorpato"]
[Black "Ozates, Tuna"]
[BlackFideId "6354521"]
[WhiteElo "2011"]
[BlackElo "2151"]
[Result "0-1"]
[Round "03"]
[TimeControl "180+2"]
[Date "2023.05.16"]
[WhiteClock "0:00:02"]
[BlackClock "0:00:16"]

1. e4 {[%clk 0:03:00]}  e5 {[%clk 0:02:54]} 2. d4 {[%clk 0:02:57]}  exd4 {[%clk 0:02:45]} 3. Nf3 {[%clk 0:02:56]}  Nc6 {[%clk 0:02:26]} 4. c3 {[%clk 0:02:56]}  d3 {[%clk 0:02:25]} 5. Bxd3 {[%clk 0:02:54]}  Bc5 {[%clk 0:02:26]} 6. O-O {[%clk 0:02:53]}  d6 {[%clk 0:02:20]} 7. Bf4 {[%clk 0:02:50]}  Nge7 {[%clk 0:02:16]} 8. Nbd2 {[%clk 0:02:48]}  Ng6 {[%clk 0:02:16]} 9. Bg3 {[%clk 0:02:46]}  Nce5 {[%clk 0:02:15]} 10. Bc2 {[%clk 0:02:19]}  h5 {[%clk 0:02:06]} 11. h3 {[%clk 0:02:16]}  h4 {[%clk 0:02:00]} 12. Bh2 {[%clk 0:02:07]}  Qf6 {[%clk 0:01:51]} 13. Nxe5 {[%clk 0:01:58]}  dxe5 {[%clk 0:01:47]} 14. Nf3 {[%clk 0:01:48]}  Be6 {[%clk 0:01:43]} 15. Qe2 {[%clk 0:01:42]}  c6 {[%clk 0:01:39]} 16. Bd3 {[%clk 0:01:14]}  O-O {[%clk 0:01:22]} 17. Bc4 {[%clk 0:01:10]}  Rad8 {[%clk 0:01:09]} 18. Rad1 {[%clk 0:00:59]}  b5 {[%clk 0:01:03]} 19. Bxe6 {[%clk 0:00:52]}  Qxe6 {[%clk 0:01:04]} 20. b3 {[%clk 0:00:44]}  f6 {[%clk 0:01:02]} 21. Nd2 {[%clk 0:00:20]}  Rd7 {[%clk 0:00:41]} 22. c4 {[%clk 0:00:19]}  a6 {[%clk 0:00:38]} 23. cxb5 {[%clk 0:00:19]}  cxb5 {[%clk 0:00:36]} 24. Nf3 {[%clk 0:00:19]}  Rfd8 {[%clk 0:00:34]} 25. Rxd7 {[%clk 0:00:18]}  Qxd7 {[%clk 0:00:31]} 26. Nxh4 {[%clk 0:00:14]}  Nxh4 {[%clk 0:00:28]} 27. Qh5 {[%clk 0:00:14]}  g5 {[%clk 0:00:19]} 28. g3 {[%clk 0:00:13]}  Qf7 {[%clk 0:00:14]} 29. Qxf7+ {[%clk 0:00:12]}  Kxf7 {[%clk 0:00:15]} 30. gxh4 {[%clk 0:00:12]}  gxh4 {[%clk 0:00:15]} 31. Kg2 {[%clk 0:00:12]}  Rd2 {[%clk 0:00:15]} 32. Rc1 {[%clk 0:00:12]}  Rxf2+ {[%clk 0:00:15]} 33. Kh1 {[%clk 0:00:13]}  Bd4 {[%clk 0:00:14]} 34. Rc7+ {[%clk 0:00:12]}  Kg6 {[%clk 0:00:14]} 35. Bg1 {[%clk 0:00:13]}  Rf1 {[%clk 0:00:14]} 36. Rc8 {[%clk 0:00:11]}  Rxg1+ {[%clk 0:00:14]} 37. Kh2 {[%clk 0:00:11]}  Ra1 {[%clk 0:00:15]} 38. Rg8+ {[%clk 0:00:10]}  Kf7 {[%clk 0:00:14]} 39. Rh8 {[%clk 0:00:10]}  Rxa2+ {[%clk 0:00:15]} 40. Kh1 {[%clk 0:00:10]}  Bf2 {[%clk 0:00:15]} 41. Rh7+ {[%clk 0:00:10]}  Kg6 {[%clk 0:00:15]} 42. Ra7 {[%clk 0:00:08]}  Bg3 {[%clk 0:00:15]} 43. Kg1 {[%clk 0:00:07]}  f5 {[%clk 0:00:16]} 44. exf5+ {[%clk 0:00:07]}  Kxf5 {[%clk 0:00:17]} 45. Rf7+ {[%clk 0:00:07]}  Ke6 {[%clk 0:00:17]} 46. Rf8 {[%clk 0:00:06]}  e4 {[%clk 0:00:17]} 47. Rg8 {[%clk 0:00:05]}  Ke5 {[%clk 0:00:17]} 48. Re8+ {[%clk 0:00:05]}  Kd4 {[%clk 0:00:17]} 49. Rd8+ {[%clk 0:00:06]}  Ke3 {[%clk 0:00:18]} 50. Kf1 {[%clk 0:00:06]}  Ra1+ {[%clk 0:00:18]} 51. Kg2 {[%clk 0:00:07]}  Ke2 {[%clk 0:00:18]} 52. Re8 {[%clk 0:00:06]}  e3 {[%clk 0:00:18]} 53. Rc8 {[%clk 0:00:06]}  Rd1 {[%clk 0:00:17]} 54. Rc2+ {[%clk 0:00:06]}  Rd2 {[%clk 0:00:17]} 55. Rc1 {[%clk 0:00:06]}  Kd3+ {[%clk 0:00:17]} 56. Kf3 {[%clk 0:00:02]}  e2 {[%clk 0:00:16]} 0-1


[Site "https://www.chess.com"]

[Event "Titled Tuesday Blitz May 16 Late 2023"]
[White "Senft, Sean"]
[Black "Samsonkin, Artiom"]
[WhiteFideId "2044960"]
[BlackFideId "13503111"]
[WhiteElo "1989"]
[BlackElo "2524"]
[Result "0-1"]
[Round "03"]
[TimeControl "180+2"]
[Date "2023.05.16"]
[WhiteClock "0:00:00"]
[BlackClock "0:00:59"]

1. d4 {[%clk 0:03:00]}  Nf6 {[%clk 0:02:59]} 2. c4 {[%clk 0:03:01]}  g6 {[%clk 0:02:57]} 3. Nc3 {[%clk 0:03:01]}  Bg7 {[%clk 0:02:57]} 4. e4 {[%clk 0:03:01]}  d6 {[%clk 0:02:58]} 5. f4 {[%clk 0:03:02]}  O-O {[%clk 0:02:58]} 6. Nf3 {[%clk 0:03:02]}  Na6 {[%clk 0:02:55]} 7. Bd3 {[%clk 0:03:00]}  e5 {[%clk 0:02:55]} 8. fxe5 {[%clk 0:03:00]}  dxe5 {[%clk 0:02:56]} 9. d5 {[%clk 0:03:01]}  Nc5 {[%clk 0:02:56]} 10. Bc2 {[%clk 0:03:01]}  c6 {[%clk 0:02:53]} 11. O-O {[%clk 0:03:01]}  cxd5 {[%clk 0:02:42]} 12. cxd5 {[%clk 0:03:02]}  b6 {[%clk 0:02:36]} 13. b4 {[%clk 0:02:38]}  Ncd7 {[%clk 0:02:34]} 14. Bb2 {[%clk 0:02:30]}  Ba6 {[%clk 0:02:29]} 15. Re1 {[%clk 0:02:25]}  Rc8 {[%clk 0:02:29]} 16. Rc1 {[%clk 0:02:20]}  Bh6 {[%clk 0:02:26]} 17. Rb1 {[%clk 0:02:14]}  Ng4 {[%clk 0:02:26]} 18. Bd3 {[%clk 0:01:56]}  Be3+ {[%clk 0:02:16]} 19. Kf1 {[%clk 0:01:56]}  Nf2 {[%clk 0:02:12]} 20. Bxa6 {[%clk 0:01:42]}  Nxd1 {[%clk 0:02:12]} 21. Nxd1 {[%clk 0:01:42]}  Bh6 {[%clk 0:01:59]} 22. Bxc8 {[%clk 0:01:31]}  Qxc8 {[%clk 0:02:00]} 23. Ne3 {[%clk 0:01:19]}  Bxe3 {[%clk 0:01:52]} 24. Rxe3 {[%clk 0:01:19]}  Qc4+ {[%clk 0:01:52]} 25. Re2 {[%clk 0:01:08]}  Qxa2 {[%clk 0:01:53]} 26. Ra1 {[%clk 0:01:00]}  Qc4 {[%clk 0:01:53]} 27. Rxa7 {[%clk 0:00:57]}  Rd8 {[%clk 0:01:39]} 28. Rxd7 {[%clk 0:00:53]}  Rxd7 {[%clk 0:01:35]} 29. Nxe5 {[%clk 0:00:53]}  Qb5 {[%clk 0:01:32]} 30. Nxd7 {[%clk 0:00:53]}  Qxd7 {[%clk 0:01:33]} 31. Bf6 {[%clk 0:00:48]}  Qd6 {[%clk 0:01:18]} 32. Rf2 {[%clk 0:00:13]}  Qxb4 {[%clk 0:01:12]} 33. Re2 {[%clk 0:00:06]}  Qd6 {[%clk 0:01:09]} 34. Bh4 {[%clk 0:00:01]}  Qf4+ {[%clk 0:01:09]} 35. Bf2 {[%clk 0:00:01]}  b5 {[%clk 0:01:04]} 36. g3 {[%clk 0:00:02]}  Qf3 {[%clk 0:01:04]} 37. d6 {[%clk 0:00:00]}  Qd3 {[%clk 0:00:59]} 0-1


[Site "https://www.chess.com"]

[Event "Titled Tuesday Blitz May 16 Late 2023"]
[White "Arnold, Ken"]
[Black "Haydon, David L"]
[WhiteFideId "2056836"]
[BlackFideId "415405"]
[WhiteElo "2393"]
[BlackElo "2326"]
[Result "0-1"]
[Round "03"]
[TimeControl "180+2"]
[Date "2023.05.16"]
[WhiteClock "0:00:00"]
[BlackClock "0:00:32"]

1. d4 {[%clk 0:03:00]}  Nf6 {[%clk 0:02:57]} 2. c4 {[%clk 0:02:55]}  e6 {[%clk 0:02:57]} 3. Nf3 {[%clk 0:02:54]}  b6 {[%clk 0:02:57]} 4. Nc3 {[%clk 0:02:54]}  Bb7 {[%clk 0:02:58]} 5. g3 {[%clk 0:02:55]}  Bb4 {[%clk 0:02:58]} 6. Bd2 {[%clk 0:02:55]}  O-O {[%clk 0:02:57]} 7. Bg2 {[%clk 0:02:55]}  a5 {[%clk 0:02:56]} 8. O-O {[%clk 0:02:54]}  Na6 {[%clk 0:02:55]} 9. a3 {[%clk 0:02:54]}  Be7 {[%clk 0:02:54]} 10. Ne5 {[%clk 0:02:48]}  Bxg2 {[%clk 0:02:53]} 11. Kxg2 {[%clk 0:02:49]}  Qc8 {[%clk 0:02:50]} 12. e4 {[%clk 0:02:48]}  Qb7 {[%clk 0:02:49]} 13. f3 {[%clk 0:02:47]}  d6 {[%clk 0:02:46]} 14. Nd3 {[%clk 0:02:44]}  c6 {[%clk 0:02:43]} 15. Qe2 {[%clk 0:02:28]}  b5 {[%clk 0:02:41]} 16. cxb5 {[%clk 0:02:18]}  cxb5 {[%clk 0:02:41]} 17. a4 {[%clk 0:02:04]}  b4 {[%clk 0:02:40]} 18. Nb5 {[%clk 0:02:03]}  Rfc8 {[%clk 0:02:38]} 19. Rac1 {[%clk 0:01:58]}  Nd7 {[%clk 0:02:37]} 20. Be3 {[%clk 0:01:54]}  Nb6 {[%clk 0:02:35]} 21. b3 {[%clk 0:01:53]}  d5 {[%clk 0:02:34]} 22. e5 {[%clk 0:01:51]}  Nc7 {[%clk 0:02:29]} 23. Nxc7 {[%clk 0:01:49]}  Rxc7 {[%clk 0:02:29]} 24. Rxc7 {[%clk 0:01:49]}  Qxc7 {[%clk 0:02:30]} 25. Rc1 {[%clk 0:01:48]}  Qb7 {[%clk 0:02:29]} 26. Nc5 {[%clk 0:01:48]}  Bxc5 {[%clk 0:02:28]} 27. Rxc5 {[%clk 0:01:47]}  Nd7 {[%clk 0:02:27]} 28. Rc2 {[%clk 0:01:32]}  Rc8 {[%clk 0:02:24]} 29. Bf2 {[%clk 0:01:30]}  h6 {[%clk 0:02:23]} 30. Rxc8+ {[%clk 0:01:29]}  Qxc8 {[%clk 0:02:23]} 31. Qb5 {[%clk 0:01:30]}  Qc7 {[%clk 0:02:23]} 32. f4 {[%clk 0:01:26]}  Kf8 {[%clk 0:02:22]} 33. g4 {[%clk 0:01:26]}  Ke8 {[%clk 0:02:21]} 34. f5 {[%clk 0:01:25]}  Qb6 {[%clk 0:02:18]} 35. fxe6 {[%clk 0:01:23]}  fxe6 {[%clk 0:02:14]} 36. Qd3 {[%clk 0:01:22]}  Nf8 {[%clk 0:02:04]} 37. Be3 {[%clk 0:01:18]}  Qc6 {[%clk 0:02:03]} 38. Bd2 {[%clk 0:01:18]}  Kf7 {[%clk 0:02:02]} 39. h4 {[%clk 0:01:18]}  Kg8 {[%clk 0:02:00]} 40. h5 {[%clk 0:01:16]}  Qe8 {[%clk 0:01:57]} 41. Qa6 {[%clk 0:00:56]}  Qd8 {[%clk 0:01:50]} 42. Kg3 {[%clk 0:00:50]}  Qc7 {[%clk 0:01:44]} 43. Qd3 {[%clk 0:00:47]}  Qb6 {[%clk 0:01:38]} 44. g5 {[%clk 0:00:45]}  hxg5 {[%clk 0:01:38]} 45. Bxg5 {[%clk 0:00:45]}  Qc6 {[%clk 0:01:37]} 46. Bd2 {[%clk 0:00:44]}  Qe8 {[%clk 0:01:36]} 47. Kg4 {[%clk 0:00:38]}  Qf7 {[%clk 0:01:35]} 48. Bf4 {[%clk 0:00:37]}  Qc7 {[%clk 0:01:30]} 49. h6 {[%clk 0:00:33]}  Qf7 {[%clk 0:01:25]} 50. hxg7 {[%clk 0:00:32]}  Qxg7+ {[%clk 0:01:09]} 51. Kf3 {[%clk 0:00:31]}  Ng6 {[%clk 0:01:07]} 52. Bg5 {[%clk 0:00:28]}  Nxe5+ {[%clk 0:01:05]} 53. dxe5 {[%clk 0:00:25]}  Qxg5 {[%clk 0:01:05]} 54. Qd4 {[%clk 0:00:19]}  Qf5+ {[%clk 0:01:05]} 55. Ke3 {[%clk 0:00:19]}  Qh3+ {[%clk 0:01:03]} 56. Kf2 {[%clk 0:00:16]}  Qxb3 {[%clk 0:00:54]} 57. Qg4+ {[%clk 0:00:15]}  Kf7 {[%clk 0:00:54]} 58. Qh5+ {[%clk 0:00:14]}  Ke7 {[%clk 0:00:54]} 59. Qh7+ {[%clk 0:00:13]}  Kd8 {[%clk 0:00:54]} 60. Qg8+ {[%clk 0:00:12]}  Kc7 {[%clk 0:00:54]} 61. Qf7+ {[%clk 0:00:11]}  Kb6 {[%clk 0:00:53]} 62. Qxe6+ {[%clk 0:00:11]}  Kc5 {[%clk 0:00:53]} 63. Qd6+ {[%clk 0:00:10]}  Kd4 {[%clk 0:00:53]} 64. e6 {[%clk 0:00:10]}  Qe3+ {[%clk 0:00:53]} 65. Kg2 {[%clk 0:00:10]}  Qe4+ {[%clk 0:00:52]} 66. Kg3 {[%clk 0:00:09]}  b3 {[%clk 0:00:51]} 67. e7 {[%clk 0:00:09]}  b2 {[%clk 0:00:49]} 68. Qb6+ {[%clk 0:00:09]}  Kc3 {[%clk 0:00:48]} 69. Qc5+ {[%clk 0:00:07]}  Kb3 {[%clk 0:00:48]} 70. Qb5+ {[%clk 0:00:07]}  Ka2 {[%clk 0:00:48]} 71. e8=Q {[%clk 0:00:07]}  Qxe8 {[%clk 0:00:47]} 72. Qxe8 {[%clk 0:00:08]}  b1=Q {[%clk 0:00:46]} 73. Qb5 {[%clk 0:00:08]}  Qb3+ {[%clk 0:00:44]} 74. Kf4 {[%clk 0:00:08]}  Qc4+ {[%clk 0:00:36]} 75. Ke5 {[%clk 0:00:07]}  Ka3 {[%clk 0:00:37]} 76. Qxd5 {[%clk 0:00:05]}  Qxa4 {[%clk 0:00:32]} 77. Qd3+ {[%clk 0:00:00]}  Qb3 {[%clk 0:00:32]} 0-1


[Site "https://www.chess.com"]

[Event "Titled Tuesday Blitz May 16 Late 2023"]
[White "Guerra Tulcan, Lenin"]
[Black "Prieto Aranguren, Alain"]
[WhiteFideId "3601382"]
[BlackFideId "2268906"]
[WhiteElo "2368"]
[BlackElo "2209"]
[Result "1-0"]
[Round "03"]
[TimeControl "180+2"]
[Date "2023.05.16"]
[WhiteClock "0:01:46"]
[BlackClock "0:01:39"]

1. e4 {[%clk 0:03:00]}  c6 {[%clk 0:02:57]} 2. Nf3 {[%clk 0:02:59]}  d5 {[%clk 0:02:58]} 3. exd5 {[%clk 0:03:00]}  cxd5 {[%clk 0:02:58]} 4. Ne5 {[%clk 0:03:00]}  Qb6 {[%clk 0:02:58]} 5. d4 {[%clk 0:02:51]}  Nc6 {[%clk 0:02:57]} 6. Nc3 {[%clk 0:02:49]}  Nf6 {[%clk 0:02:54]} 7. Bb5 {[%clk 0:02:48]}  Bd7 {[%clk 0:02:54]} 8. Bxc6 {[%clk 0:02:46]}  Bxc6 {[%clk 0:02:53]} 9. O-O {[%clk 0:02:46]}  e6 {[%clk 0:02:50]} 10. Re1 {[%clk 0:02:44]}  Be7 {[%clk 0:02:49]} 11. Ne2 {[%clk 0:02:35]}  Rc8 {[%clk 0:02:48]} 12. c3 {[%clk 0:02:33]}  Bb5 {[%clk 0:02:47]} 13. Ng3 {[%clk 0:02:32]}  h5 {[%clk 0:02:45]} 14. h3 {[%clk 0:02:23]}  h4 {[%clk 0:02:44]} 15. Ne2 {[%clk 0:02:24]}  Ne4 {[%clk 0:02:40]} 16. Nf4 {[%clk 0:02:22]}  Bf6 {[%clk 0:02:27]} 17. Ng4 {[%clk 0:02:18]}  Bg5 {[%clk 0:02:22]} 18. Nxd5 {[%clk 0:02:07]}  exd5 {[%clk 0:02:21]} 19. Bxg5 {[%clk 0:02:08]}  Qg6 {[%clk 0:02:03]} 20. f3 {[%clk 0:01:52]}  Qxg5 {[%clk 0:01:59]} 21. fxe4 {[%clk 0:01:52]}  dxe4 {[%clk 0:01:52]} 22. Rxe4+ {[%clk 0:01:51]}  Kf8 {[%clk 0:01:50]} 23. Re5 {[%clk 0:01:51]}  f5 {[%clk 0:01:47]} 24. Rxb5 {[%clk 0:01:49]}  a6 {[%clk 0:01:46]} 25. Re5 {[%clk 0:01:47]}  Rc6 {[%clk 0:01:39]} 26. Qf3 {[%clk 0:01:46]} 1-0


[Site "https://www.chess.com"]

[Event "Titled Tuesday Blitz May 16 Late 2023"]
[White "Figorito, Nick"]
[Black "Ismayil, Malak"]
[WhiteFideId "30923689"]
[BlackFideId "13412604"]
[WhiteElo "2326"]
[BlackElo "1868"]
[Result "0-1"]
[Round "03"]
[TimeControl "180+2"]
[Date "2023.05.16"]
[WhiteClock "0:00:09"]
[BlackClock "0:00:16"]

1. Nf3 {[%clk 0:03:00]}  Nf6 {[%clk 0:02:56]} 2. g3 {[%clk 0:03:01]}  d5 {[%clk 0:02:55]} 3. Bg2 {[%clk 0:03:02]}  e6 {[%clk 0:02:56]} 4. O-O {[%clk 0:03:02]}  Be7 {[%clk 0:02:56]} 5. d4 {[%clk 0:03:02]}  O-O {[%clk 0:02:56]} 6. b3 {[%clk 0:03:02]}  c5 {[%clk 0:02:56]} 7. Bb2 {[%clk 0:03:02]}  Nc6 {[%clk 0:02:57]} 8. Nbd2 {[%clk 0:03:00]}  b6 {[%clk 0:02:57]} 9. c4 {[%clk 0:03:00]}  Bb7 {[%clk 0:02:54]} 10. cxd5 {[%clk 0:03:00]}  exd5 {[%clk 0:02:55]} 11. dxc5 {[%clk 0:02:59]}  bxc5 {[%clk 0:02:56]} 12. Rc1 {[%clk 0:02:54]}  Rc8 {[%clk 0:02:57]} 13. Qc2 {[%clk 0:02:54]}  Ba6 {[%clk 0:02:55]} 14. Rfe1 {[%clk 0:02:53]}  Nb4 {[%clk 0:02:54]} 15. Qb1 {[%clk 0:02:53]}  d4 {[%clk 0:02:53]} 16. Ne5 {[%clk 0:02:46]}  Nbd5 {[%clk 0:02:46]} 17. Ndc4 {[%clk 0:02:16]}  Re8 {[%clk 0:02:37]} 18. e3 {[%clk 0:02:09]}  dxe3 {[%clk 0:02:33]} 19. Nxe3 {[%clk 0:02:06]}  Nb4 {[%clk 0:02:21]} 20. a3 {[%clk 0:01:59]}  Nd3 {[%clk 0:02:05]} 21. Nxd3 {[%clk 0:01:58]}  Bxd3 {[%clk 0:01:58]} 22. Qa1 {[%clk 0:01:58]}  Qb6 {[%clk 0:01:57]} 23. Bxf6 {[%clk 0:01:48]}  Bxf6 {[%clk 0:01:57]} 24. Nd5 {[%clk 0:01:49]}  Bxa1 {[%clk 0:01:53]} 25. Nxb6 {[%clk 0:01:49]}  axb6 {[%clk 0:01:50]} 26. Rxa1 {[%clk 0:01:46]}  Bc2 {[%clk 0:01:47]} 27. Bd5 {[%clk 0:01:41]}  Red8 {[%clk 0:01:43]} 28. Bc4 {[%clk 0:01:37]}  Kf8 {[%clk 0:01:41]} 29. Rac1 {[%clk 0:01:34]}  Rd2 {[%clk 0:01:39]} 30. Re3 {[%clk 0:01:25]}  Rb8 {[%clk 0:01:33]} 31. a4 {[%clk 0:01:20]}  Rbd8 {[%clk 0:01:27]} 32. Kg2 {[%clk 0:01:14]}  f5 {[%clk 0:01:21]} 33. Be2 {[%clk 0:01:01]}  Be4+ {[%clk 0:01:19]} 34. Bf3 {[%clk 0:01:01]}  R2d3 {[%clk 0:01:09]} 35. Rxd3 {[%clk 0:00:48]}  Rxd3 {[%clk 0:01:10]} 36. Bxe4 {[%clk 0:00:47]}  fxe4 {[%clk 0:01:08]} 37. Rb1 {[%clk 0:00:42]}  Kf7 {[%clk 0:00:59]} 38. h4 {[%clk 0:00:42]}  Kf6 {[%clk 0:00:59]} 39. b4 {[%clk 0:00:41]}  c4 {[%clk 0:00:58]} 40. a5 {[%clk 0:00:36]}  bxa5 {[%clk 0:00:53]} 41. bxa5 {[%clk 0:00:37]}  Ra3 {[%clk 0:00:53]} 42. Rb4 {[%clk 0:00:36]}  c3 {[%clk 0:00:33]} 43. Rb5 {[%clk 0:00:33]}  Ra2 {[%clk 0:00:26]} 44. Rc5 {[%clk 0:00:29]}  c2 {[%clk 0:00:20]} 45. a6 {[%clk 0:00:29]}  e3 {[%clk 0:00:20]} 46. Kf3 {[%clk 0:00:20]}  exf2 {[%clk 0:00:18]} 47. Kg2 {[%clk 0:00:18]}  Ra1 {[%clk 0:00:17]} 48. Rc6+ {[%clk 0:00:14]}  Ke5 {[%clk 0:00:16]} 49. Kxf2 {[%clk 0:00:11]}  c1=Q {[%clk 0:00:15]} 50. Rxc1 {[%clk 0:00:10]}  Rxc1 {[%clk 0:00:16]} 51. a7 {[%clk 0:00:09]}  Ra1 {[%clk 0:00:16]} 0-1


[Site "https://www.chess.com"]

[Event "Titled Tuesday Blitz May 16 Late 2023"]
[White "Ollier, Pablo"]
[Black "Onslow, Alfie"]
[WhiteFideId "652318"]
[BlackFideId "436976"]
[WhiteElo "2496"]
[BlackElo "2114"]
[Result "1-0"]
[Round "03"]
[TimeControl "180+2"]
[Date "2023.05.16"]
[WhiteClock "0:01:05"]
[BlackClock "0:02:08"]

1. d4 {[%clk 0:03:00]}  Nf6 {[%clk 0:02:59]} 2. c4 {[%clk 0:03:01]}  c5 {[%clk 0:02:59]} 3. d5 {[%clk 0:03:01]}  b5 {[%clk 0:03:00]} 4. cxb5 {[%clk 0:03:02]}  a6 {[%clk 0:03:01]} 5. Nc3 {[%clk 0:03:03]}  axb5 {[%clk 0:03:00]} 6. e4 {[%clk 0:03:03]}  b4 {[%clk 0:03:00]} 7. Nb5 {[%clk 0:03:04]}  d6 {[%clk 0:02:55]} 8. a4 {[%clk 0:03:03]}  Nbd7 {[%clk 0:02:51]} 9. Nf3 {[%clk 0:02:52]}  g6 {[%clk 0:02:51]} 10. Bd3 {[%clk 0:02:52]}  Bg7 {[%clk 0:02:50]} 11. O-O {[%clk 0:02:52]}  O-O {[%clk 0:02:51]} 12. Bg5 {[%clk 0:02:51]}  Ng4 {[%clk 0:02:47]} 13. Bf4 {[%clk 0:01:29]}  Nge5 {[%clk 0:02:43]} 14. Nxe5 {[%clk 0:01:27]}  Nxe5 {[%clk 0:02:42]} 15. Bxe5 {[%clk 0:01:24]}  Bxe5 {[%clk 0:02:43]} 16. Qe2 {[%clk 0:01:23]}  Bd7 {[%clk 0:02:38]} 17. f4 {[%clk 0:01:19]}  Bxb5 {[%clk 0:02:32]} 18. Bxb5 {[%clk 0:01:17]}  Bd4+ {[%clk 0:02:31]} 19. Kh1 {[%clk 0:01:17]}  e5 {[%clk 0:02:21]} 20. dxe6 {[%clk 0:01:11]}  Be5 {[%clk 0:02:08]} 21. exf7+ {[%clk 0:01:05]} 1-0


[Site "https://www.chess.com"]